fUSD/lending_fUSD_20250125
["ID","MTS","AMOUNT","RATE_DAILY","PERIOD"]
[350289627,1737771038170,-505.01251646,0.00021182,2]
[350289629,1737771038180,-509.49362285,0.00021182,2]
[350289631,1737771038189,-515.04364025,0.00021182,2]
[350289633,1737771038199,-500.0,0.00021182,2]
[350289635,1737771038209,-297.4793431,0.00021182,2]
[350289636,1737771038219,-508.78534408,0.00021182,2]
[350289637,1737771038230,-509.00011869,0.00021182,2]
[350289638,1737771038240,-437.56800665,0.00021182,2]
[350289639,1737771038250,-500.0,0.00021182,2]
[350289640,1737771038259,-510.78366667,0.00021182,2]
[350289641,1737771038269,-500.0,0.00021182,2]
[350289642,1737771038278,-509.52118718,0.00021182,2]
[350289643,1737771038288,-505.21811925,0.00021182,2]
[350289644,1737771038298,-500.0,0.00021182,2]
[350289645,1737771038308,-500.0,0.00021182,2]
[350289646,1737771038319,-505.69389309,0.00021182,2]
[350289647,1737771038331,-500.0,0.00021182,2]
[350289648,1737771038340,-500.0,0.00021182,2]
[350289649,1737771038349,-500.0,0.00021182,2]
[350289650,1737771038359,-500.0,0.00021182,2]
[350289651,1737771038370,-500.0,0.00021182,2]
[350289652,1737771038379,-500.0,0.00021182,2]
[350289653,1737771038388,-500.0,0.00021182,2]
[350289654,1737771038401,-482.64147707,0.00021182,2]
[350289655,1737771038412,-500.0,0.00021182,2]
[350289656,1737771038422,-500.0,0.00021182,2]
[350289657,1737771038431,-506.96589926,0.00021182,2]
[350289658,1737771038441,-500.0,0.00021182,2]
[350289659,1737771038450,-500.0,0.00021182,2]
[350289660,1737771038460,-442.75491538,0.00021182,2]
[350289661,1737771038470,-500.0,0.00021182,2]
[350289662,1737771038481,-503.25356554,0.00021182,2]
[350289663,1737771038491,-429.79047005,0.00021182,2]
[350289664,1737771038500,-508.78968268,0.00021182,2]
[350289665,1737771038510,-500.0,0.00021182,2]
[350289666,1737771038520,-535.56396692,0.00021182,2]
[350289667,1737771038529,-500.0,0.00021182,2]
[350289668,1737771038539,-500.0,0.00021182,2]
[350289669,1737771038549,-500.0,0.00021182,2]
[350289670,1737771038558,-500.0,0.00021182,2]
[350289671,1737771038568,-500.0,0.00021182,2]
[350289672,1737771038578,-500.0,0.00021182,2]
[350289673,1737771038587,-270.91201067,0.00021182,2]
[350289674,1737771038597,-500.0,0.00021182,2]
[350289675,1737771038607,-500.0,0.00021182,2]
[350289676,1737771038617,-500.0,0.00021182,2]
[350289677,1737771038626,-500.0,0.00021182,2]
[350289678,1737771038635,-500.0,0.00021182,2]
[350289679,1737771038645,-502.15128304,0.00021182,2]
[350289681,1737771038654,-500.0,0.00021182,2]
[350289683,1737771038663,-500.0,0.00021182,2]
[350289685,1737771038673,-510.49709704,0.00021182,2]
[350289687,1737771038683,-500.0,0.00021182,2]
[350289689,1737771038692,-475.0,0.00021182,2]
[350289691,1737771038701,-500.0,0.00021182,2]
[350289693,1737771038710,-500.0,0.00021182,2]
[350289695,1737771038719,-500.0,0.00021182,2]
[350289696,1737771038729,-500.0,0.00021182,2]
[350289697,1737771038738,-500.0,0.00021182,2]
[350289699,1737771038748,-500.0,0.00021182,2]
[350289701,1737771038757,-500.0,0.00021182,2]
[350289703,1737771038766,-500.0,0.00021182,2]
[350289705,1737771038775,-500.0,0.00021182,2]
[350289707,1737771038784,-481.23874195,0.00021182,2]
[350289709,1737771038794,-500.0,0.00021182,2]
[350289711,1737771038804,-500.0,0.00021182,2]
[350289713,1737771038813,-500.0,0.00021182,2]
[350289714,1737771038823,-500.0,0.00021182,2]
[350289715,1737771038832,-500.0,0.00021182,2]
[350289716,1737771038841,-500.0,0.00021182,2]
[350289717,1737771038850,-500.0,0.00021182,2]
[350289718,1737771038860,-500.0,0.00021182,2]
[350289719,1737771038870,-479.64705072,0.00021182,2]
[350289720,1737771038879,-500.0,0.00021182,2]
[350289721,1737771038889,-515.78825106,0.00021182,2]
[350289722,1737771038898,-500.0,0.00021182,2]
[350289723,1737771038908,-500.0,0.00021182,2]
[350289724,1737771038917,-516.23903111,0.00021182,2]
[350289725,1737771038926,-500.0,0.00021182,2]
[350289726,1737771038935,-1000.0,0.00021182,2]
[350289727,1737771038945,-500.0,0.00021182,2]
[350289728,1737771038956,-500.0,0.00021182,2]
[350289729,1737771038966,-519.65899335,0.00021182,2]
[350289730,1737771038975,-500.0,0.00021182,2]
[350289731,1737771038986,-500.0,0.00021182,2]
[350289732,1737771038995,-500.0,0.00021182,2]
[350289733,1737771039004,-500.0,0.00021182,2]
[350289734,1737771039013,-500.0,0.00021182,2]
[350289735,1737771039023,-523.71867118,0.00021182,2]
[350289736,1737771039032,-500.0,0.00021182,2]
[350289737,1737771039041,-500.0,0.00021182,2]
[350289738,1737771039050,-500.0,0.00021182,2]
[350289739,1737771039060,-500.0,0.00021182,2]
[350289740,1737771039069,-502.90683095,0.00021182,2]
[350289741,1737771039078,-500.0,0.00021182,2]
[350289742,1737771039088,-500.0,0.00021182,2]
[350289743,1737771039097,-500.0,0.00021182,2]
[350289744,1737771039106,-500.0,0.00021182,2]
[350289745,1737771039115,-500.0,0.00021182,2]
[350289746,1737771039123,-490.0,0.00021182,2]
[350289747,1737771039134,-500.0,0.00021182,2]
[350289748,1737771039143,-500.0,0.00021182,2]
[350289749,1737771039153,-500.0,0.00021182,2]
[350289750,1737771039163,-500.0,0.00021182,2]
[350289751,1737771039172,-500.0,0.00021182,2]
[350289752,1737771039182,-500.0,0.00021182,2]
[350289753,1737771039192,-1000.0,0.00021183,2]
[350289754,1737771039202,-225.12870146,0.0002121,2]
[350289755,1737771039212,-2486.31625102,0.00021264,2]
[350289756,1737771039222,-500.0,0.00021272,2]
[350289757,1737771039232,-3457.18840678,0.00021297,2]
[350289758,1737771039241,-235.0,0.0002131,2]
[350289759,1737771039251,-223.37121288,0.00021319,2]
[350289760,1737771039260,-500.0,0.00021319,2]
[350289761,1737771039269,-500.0,0.00021319,2]
[350289762,1737771039278,-530.03550251,0.00021319,2]
[350289763,1737771039287,-500.0,0.00021319,2]
[350289764,1737771039297,-241.18239377,0.00021319,2]
[350289765,1737771039306,-500.0,0.00021319,2]
[350289766,1737771039316,-510.75543414,0.00021319,2]
[350289767,1737771039330,-500.0,0.00021319,2]
[350289768,1737771039339,-257.37,0.00021319,2]
[350289769,1737771039350,-527.7,0.00021319,2]
[350289770,1737771039359,-522.55,0.00021319,2]
[350289771,1737771039370,-500.0,0.00021319,2]
[350289772,1737771039379,-497.04518561,0.00021319,2]
[350289773,1737771039388,-480.36498218,0.00021319,2]
[350289774,1737771039398,-500.0,0.00021319,2]
[350289775,1737771039408,-434.34,0.00021319,2]
[350289776,1737771039417,-500.0,0.00021319,2]
[350289777,1737771039427,-500.0,0.00021319,2]
[350289778,1737771039436,-357.88,0.00021319,2]
[350289779,1737771039445,-500.0,0.00021319,2]
[350289780,1737771039455,-500.0,0.00021319,2]
[350289781,1737771039465,-473.53,0.00021319,2]
[350289782,1737771039474,-500.0,0.00021319,2]
[350289783,1737771039484,-500.0,0.00021319,2]
[350289784,1737771039494,-500.0,0.00021319,2]
[350289785,1737771039504,-513.41138285,0.00021319,2]
[350289786,1737771039513,-500.0,0.00021319,2]
[350289787,1737771039523,-509.47444049,0.00021319,2]
[350289788,1737771039532,-500.0,0.00021319,2]
[350289789,1737771039541,-500.0,0.00021319,2]
[350289790,1737771039550,-500.0,0.00021319,2]
[350289791,1737771039560,-515.85521488,0.00021319,2]
[350289792,1737771039570,-500.0,0.00021319,2]
[350289793,1737771039579,-500.0,0.00021319,2]
[350289794,1737771039588,-500.0,0.00021319,2]
[350289795,1737771039598,-500.0,0.00021319,2]
[350289796,1737771039607,-500.0,0.00021319,2]
[350289797,1737771039617,-500.0,0.00021319,2]
[350289798,1737771039627,-480.0,0.00021319,2]
[350289799,1737771039636,-500.0,0.00021319,2]
[350289800,1737771039645,-530.02806528,0.00021319,2]
[350289801,1737771039656,-480.0,0.00021319,2]
[350289802,1737771039666,-518.19899467,0.00021319,2]
[350289803,1737771039675,-500.0,0.00021319,2]
[350289804,1737771039685,-517.53130781,0.00021319,2]
[350289805,1737771039695,-500.0,0.00021319,2]
[350289806,1737771039705,-500.0,0.00021319,2]
[350289807,1737771039715,-500.0,0.00021319,2]
[350289808,1737771039724,-500.0,0.00021319,2]
[350289809,1737771039734,-500.0,0.00021319,2]
[350289810,1737771039744,-500.0,0.00021319,2]
[350289811,1737771039753,-607.99,0.00021326,2]
[350289812,1737771039763,-2160.0,0.0002134,2]
[350289813,1737771039772,-225.12870146,0.00021348,2]
[350289814,1737771039783,-2486.31625102,0.00021355,2]
[350289815,1737771039794,-500.0,0.00021409,2]
[350289816,1737771039805,-2486.31625102,0.00021446,2]
[350289817,1737771039817,-182.00815285,0.00021456,2]
[350289818,1737771039827,-304.46,0.00021456,2]
[350289819,1737771039837,-225.79,0.00021456,2]
[350289820,1737771039846,-155.19,0.00021456,2]
[350289821,1737771039856,-500.0,0.00021456,2]
[350289822,1737771039866,-500.0,0.00021456,2]
[350289823,1737771039875,-500.0,0.00021456,2]
[350289824,1737771039885,-353.14,0.00021456,2]
[350289825,1737771039894,-176.63,0.00021456,2]
[350289826,1737771039903,-500.0,0.00021456,2]
[350289827,1737771039912,-500.0,0.00021456,2]
[350289828,1737771039921,-332.5,0.00021456,2]
[350289829,1737771039931,-172.17,0.00021456,2]
[350289830,1737771039942,-500.0,0.00021456,2]
[350289831,1737771039952,-520.67666015,0.00021456,2]
[350289832,1737771039962,-500.0,0.00021456,2]
[350289833,1737771039972,-225.12870146,0.00021486,2]
[350289834,1737771039981,-2486.31625102,0.00021536,2]
[350289835,1737771039991,-500.0,0.00021546,2]
[350289836,1737771040001,-1037.80591045,0.0002156,2]
[350289840,1737771040229,-1122.19408955,0.0002156,2]
[350289841,1737771040240,-152.0,0.00021576,5]
[350289842,1737771040249,-5000.0,0.00021584,2]
[350289843,1737771040259,-4060.80591045,0.00021584,2]
[350289844,1737771040270,-939.19408955,0.00021584,2]
[350289845,1737771040280,-500.0,0.00021593,2]
[350289846,1737771040290,-320.32,0.00021593,2]
[350289847,1737771040300,-500.0,0.00021593,2]
[350289848,1737771040309,-244.86,0.00021593,2]
[350289849,1737771040318,-396.45,0.00021593,2]
[350289850,1737771040335,-497.74,0.00021593,2]
[350289851,1737771040344,-9586.01400184,0.00021621,2]
[350289852,1737771040354,-225.12870146,0.00021624,3]
[350289853,1737771040363,-235.0,0.0002165,2]
[350289854,1737771040374,-800.33340782,0.0002167,2]
[350289855,1737771040384,-500.0,0.00021683,2]
[350289856,1737771040393,-356.92,0.00021695,2]
[350289857,1737771040403,-500.0,0.0002173,2]
[350289858,1737771040413,-500.0,0.0002173,2]
[350289859,1737771040423,-150.0,0.00021736,2]
[350289860,1737771040432,-150.0,0.0002174,2]
[350289861,1737771040442,-1000.0,0.00021749,2]
[350289862,1737771040455,-8490.53979933,0.0002175,3]
[350289863,1737771040467,-1651.02997507,0.0002175,3]
[350289864,1737771040561,-275.486,0.00020246,2]
[350289865,1737771040571,-2486.31625102,0.00021627,2]
[350289866,1737771040581,-1221.15530702,0.0002175,3]
[350289867,1737771040592,-5339.51808944,0.0002175,3]
[350289868,1737771040604,-253.2,0.0002175,3]
[350289869,1737771040615,-338.30177044,0.0002175,3]
[350289870,1737771040627,-92706.2550587,0.0002175,3]
[350289871,1737771040636,-150.0,0.00021752,2]
[350289872,1737771040646,-225.12870146,0.00021762,3]
[350289873,1737771040655,-1018.8361527,0.00021766,2]
[350289874,1737771040665,-150.0,0.00021768,2]
[350289875,1737771040674,-2160.0,0.0002178,2]
[350289876,1737771040683,-150.0,0.00021784,2]
[350289877,1737771040692,-13626.2828,0.000218,2]
[350289878,1737771040702,-4787.16566744,0.000218,2]
[350289879,1737771040711,-560.0,0.000218,2]
[350289880,1737771040721,-256.41791614,0.000218,2]
[350289881,1737771040730,-150.0,0.00021812,2]
[350289882,1737771040741,-471.52,0.0002182,2]
[350289883,1737771040751,-150.0,0.0002184,2]
[350289884,1737771040760,-256.41791613,0.0002185,2]
[350289885,1737771040770,-150.0,0.00021859,2]
[350289886,1737771040779,-461.35999999,0.00021867,2]
[350289887,1737771040789,-100671.5964,0.00021888,2]
[350289888,1737771040799,-2000.0,0.0002189,2]
[350289889,1737771040810,-2000.0,0.0002189,2]
[350289890,1737771040819,-500.0,0.00021899,2]
[350289891,1737771040829,-500.0,0.00021899,2]
[350289892,1737771040838,-1547.96067382,0.000219,2]
[350289893,1737771040847,-1547.96067383,0.000219,2]
[350289894,1737771040856,-721.3032,0.000219,2]
[350289895,1737771040865,-1457.1496,0.000219,2]
[350289896,1737771040875,-892.83411438,0.000219,2]
[350289897,1737771040884,-733.41707646,0.000219,2]
[350289898,1737771040893,-150.0,0.000219,9]
[350289899,1737771040903,-703.98518738,0.000219,2]
[350289900,1737771040912,-150.73018331,0.000219,2]
[350289901,1737771040922,-3457.18840678,0.000219,2]
[350289902,1737771040931,-3083.77268263,0.000219,2]
[350289903,1737771040941,-225.12870146,0.000219,3]
[350289904,1737771040950,-4927.15001596,0.000219,2]
[350289905,1737771040959,-307.37621842,0.000219,4]
[350289906,1737771040969,-304.8707457,0.000219,2]
[350289907,1737771040979,-256.41791613,0.000219,2]
[350289908,1737771040989,-29270.63223239,0.000219,2]
[350289909,1737771040999,-2842.68344776,0.000219,2]
[350289910,1737771041008,-348.51302543,0.000219,2]
[350289911,1737771041017,-1214.0,0.000219,2]
[350289912,1737771041027,-500.0,0.00021917,7]
[350289913,1737771041037,-500.0,0.00021917,2]
[350289914,1737771041047,-500.0,0.00021917,2]
[350289915,1737771041056,-500.0,0.00021917,2]
[350289916,1737771041066,-500.0,0.00021917,2]
[350289917,1737771041075,-500.0,0.00021917,2]
[350289918,1737771041084,-500.0,0.00021917,2]
[350289919,1737771041093,-500.0,0.00021917,3]
[350289920,1737771041102,-500.0,0.00021917,3]
[350289921,1737771041113,-500.0,0.00021917,3]
[350289922,1737771041121,-510.35362135,0.00021917,3]
[350289923,1737771041131,-519.56630551,0.00021917,7]
[350289924,1737771041141,-500.0,0.00021917,2]
[350289925,1737771041150,-500.0,0.00021917,2]
[350289926,1737771041159,-509.41647202,0.00021917,2]
[350289927,1737771041168,-2000.0,0.00021917,30]
[350289928,1737771041178,-2000.0,0.00021917,30]
[350289929,1737771041187,-2000.0,0.00021917,30]
[350289930,1737771041197,-2000.0,0.00021917,30]
[350289931,1737771041206,-2000.0,0.00021917,30]
[350289932,1737771041215,-2000.0,0.00021917,30]
[350289933,1737771041224,-150.0,0.00021918,2]
[350289934,1737771041234,-1000.0,0.00021918,2]
[350289935,1737771041243,-1000.0,0.00021918,2]
[350289936,1737771041254,-1000.0,0.00021918,2]
[350289937,1737771041263,-1000.0,0.00021918,2]
[350289938,1737771041272,-1000.0,0.00021918,2]
[350289939,1737771041281,-1000.0,0.00021918,2]
[350289940,1737771041290,-1000.0,0.00021918,2]
[350289941,1737771041300,-1000.0,0.00021918,2]
[350289942,1737771041309,-1000.0,0.00021918,2]
[350289943,1737771041319,-1000.0,0.00021918,2]
[350289944,1737771041333,-1000.0,0.00021918,2]
[350289945,1737771041342,-1000.0,0.00021918,2]
[350289946,1737771041352,-1000.0,0.00021918,2]
[350289947,1737771041362,-1000.0,0.00021918,2]
[350289948,1737771041371,-1000.0,0.00021918,2]
[350289949,1737771041381,-1000.0,0.00021918,2]
[350289950,1737771041390,-1000.0,0.00021918,2]
[350289951,1737771041400,-1000.0,0.00021918,2]
[350289952,1737771041409,-1000.0,0.00021918,2]
[350289953,1737771041420,-1071.0,0.00021918,2]
[350289954,1737771041430,-150.0,0.00021918,2]
[350289955,1737771041439,-150.0,0.00021945,2]
[350289956,1737771041449,-150.0,0.00021967,2]
[350289957,1737771041458,-150.0,0.00021973,4]
[350289958,1737771041468,-150.0,0.00021973,4]
[350289959,1737771041477,-150.0,0.00021973,4]
[350289960,1737771041488,-150.0,0.00021973,4]
[350289961,1737771041497,-150.0,0.00021973,4]
[350289962,1737771041507,-150.0,0.00021974,4]
[350289963,1737771041517,-150.0,0.00021974,4]
[350289964,1737771041526,-150.0,0.00021975,4]
[350289965,1737771041536,-150.0,0.00021976,4]
[350289966,1737771041545,-150.0,0.00021976,4]
[350289967,1737771041555,-150.0,0.00021976,4]
[350289968,1737771041564,-150.0,0.00021977,4]
[350289969,1737771041574,-150.0,0.00021977,4]
[350289970,1737771041584,-150.0,0.00021978,4]
[350289971,1737771041595,-150.0,0.00021978,4]
[350289972,1737771041605,-150.0,0.00021979,4]
[350289973,1737771041614,-150.0,0.00021979,4]
[350289974,1737771041624,-150.0,0.00021979,4]
[350289975,1737771041634,-150.0,0.0002198,4]
[350289976,1737771041644,-150.0,0.00021981,4]
[350289977,1737771041654,-150.0,0.00021981,4]
[350289978,1737771041664,-150.0,0.00021982,4]
[350289979,1737771041673,-150.0,0.00021982,4]
[350289980,1737771041683,-150.0,0.00021982,4]
[350289981,1737771041693,-150.0,0.00021983,4]
[350289982,1737771041703,-150.0,0.00021983,4]
[350289983,1737771041725,-150.0,0.00021984,4]
[350289984,1737771041744,-174.16269916,0.00021984,2]
[350289985,1737771041756,-150.0,0.00021984,4]
[350289986,1737771041769,-150.0,0.00021985,4]
[350289987,1737771041779,-150.0,0.00021985,4]
[350289988,1737771041790,-150.0,0.00021985,4]
[350289989,1737771041801,-150.0,0.00021986,4]
[350289990,1737771041813,-150.0,0.00021986,4]
[350289991,1737771041825,-150.0,0.00021987,4]
[350289992,1737771041837,-150.0,0.00021987,4]
[350289993,1737771041849,-150.0,0.00021988,4]
[350289994,1737771041862,-150.0,0.00021988,4]
[350289995,1737771041874,-150.0,0.00021988,4]
[350289996,1737771041886,-150.0,0.00021989,4]
[350289997,1737771041898,-6710.0429398,0.00021989,2]
[350289998,1737771041908,-445.4076401,0.00021989,2]
[350289999,1737771041920,-595.3078538,0.00021989,2]
[350290000,1737771041931,-469.5225273,0.00021989,2]
[350290001,1737771041941,-1074.8559882,0.00021989,2]
[350290002,1737771041951,-150.0,0.00021989,4]
[350290003,1737771041963,-1450.80878625,0.0002199,2]
[350290004,1737771041975,-1450.80878625,0.0002199,2]
[350290005,1737771041988,-1450.80878625,0.0002199,2]
[350290006,1737771041999,-150.0,0.0002199,4]
[350290007,1737771042012,-150.0,0.0002199,4]
[350290008,1737771042024,-150.0,0.00021991,4]
[350290009,1737771042035,-150.0,0.00021991,4]
[350290010,1737771042046,-150.0,0.00021992,4]
[350290011,1737771042058,-150.0,0.00021992,4]
[350290012,1737771042072,-150.0,0.00021993,4]
[350290013,1737771042084,-150.0,0.00021993,4]
[350290014,1737771042096,-150.0,0.00021994,4]
[350290015,1737771042106,-150.0,0.00021994,4]
[350290016,1737771042118,-150.0,0.00021994,4]
[350290017,1737771042129,-150.0,0.00021995,4]
[350290018,1737771042142,-150.0,0.00021995,4]
[350290019,1737771042155,-150.0,0.00021996,4]
[350290020,1737771042166,-150.0,0.00021997,4]
[350290021,1737771042178,-150.0,0.00021997,4]
[350290022,1737771042189,-150.0,0.00021997,4]
[350290023,1737771042200,-150.0,0.00021998,4]
[350290024,1737771042214,-150.0,0.00021998,4]
[350290025,1737771042227,-150.0,0.00021998,4]
[350290026,1737771042241,-366.28502129,0.00021999,7]
[350290027,1737771042252,-2000.0,0.00021999,2]
[350290028,1737771042263,-2000.0,0.00021999,2]
[350290029,1737771042275,-2000.0,0.00021999,2]
[350290030,1737771042287,-2000.0,0.00021999,2]
[350290031,1737771042298,-2000.0,0.00021999,2]
[350290032,1737771042309,-2000.0,0.00021999,2]
[350290033,1737771042324,-2000.0,0.00021999,2]
[350290034,1737771042343,-2000.0,0.00021999,2]
[350290035,1737771042353,-500.0,0.00021999,2]
[350290036,1737771042364,-169.73428416,0.00021999,2]
[350290037,1737771042376,-500.0,0.00021999,2]
[350290038,1737771042386,-500.0,0.00021999,2]
[350290039,1737771042397,-527.56167388,0.00021999,2]
[350290040,1737771042410,-150.0,0.00021999,4]
[350290041,1737771042423,-127596.09890435,0.00022,2]
[350290042,1737771042433,-10028.09239476,0.00022,2]
[350290043,1737771042443,-25183981.55327427,0.00022,2]
[350290044,1737771042457,-5010.0,0.00022,2]
[350290045,1737771042470,-2254.030016,0.00022,2]
[350290046,1737771042496,-0.02048209,0.00022,2]
[350290047,1737771042512,-154006.57799996,0.00022,2]
[350290048,1737771042527,-11976.871695,0.00022,2]
[350290049,1737771042542,-1505.76106425,0.00022,2]
[350290058,1737771044734,-1027.3,0.00021718,2]
[350290059,1737771044814,-1459.01625102,0.00021718,2]
[350290060,1737771044826,-1091.0,0.00022,2]
[350290061,1737771044837,-17487.94311559,0.00022,2]
[350290062,1737771044851,-10631.49135228,0.00022,2]
[350290065,1737771046517,-436.45920816,0.00021809,2]
[350290066,1737771046596,-306.46783237,0.00021809,2]
[350290067,1737771046610,-541.0,0.00021809,2]
[350290073,1737771087741,158.11,0.00022,120]
[350290076,1737771188675,-181.78,0.00010137,2]
[350290096,1737771624196,8000.0,0.00020211,60]
[350290109,1737772045093,-1557.67878757,0.00012,2]
[350290113,1737772081705,513550.0,0.0001,2]
[350290141,1737772154104,-800.0,9.7e-05,3]
[350290142,1737772154127,-1600.0,9.8e-05,3]
[350290143,1737772154147,-2400.0,9.9e-05,3]
[350290144,1737772154168,-725.38479154,9.9e-05,2]
[350290145,1737772154189,-153.50834302,9.973e-05,2]
[350290146,1737772154210,-85385.28622544,0.0001,2]
[350290147,1737772157098,-57073.74176,0.0001,2]
[350290148,1737772160083,-61000.49592,0.0001,2]
[350290149,1737772164091,-4625.306098,0.0001,2]
[350290151,1737772170104,-45454.41978,0.0001,2]
[350290152,1737772172148,-7628.0261383,0.0001,2]
[350290169,1737772220345,-4100.0,0.000115,4]
[350290181,1737772231427,-150.0,9.999e-05,2]
[350290184,1737772231437,-10218.3028853,0.0001,2]
[350290186,1737772231448,-300.0,0.0001,2]
[350290187,1737772231640,-497.65536239,0.0001,2]
[350290188,1737772231697,-601296.89758712,0.0001,2]
[350290189,1737772231833,-9930.54989418,0.0001,2]
[350290225,1737772237390,-300093.55442521,0.0001,2]
[350290226,1737772237402,-1967903.92690399,0.0001,2]
[350290227,1737772237412,-3300.0,0.0001,3]
[350290228,1737772237422,-2794.42419283,0.0001,2]
[350290229,1737772237431,-250.0,0.0001,2]
[350290230,1737772237441,-2176.21317937,0.0001,2]
[350290231,1737772237450,-201.57,0.00010137,2]
[350290232,1737772237459,-256.85902748,0.000107,2]
[350290233,1737772237468,-211.77383026,0.000109,2]
[350290234,1737772237478,-211.77383024,0.000109,2]
[350290235,1737772237487,-211.77383024,0.000109,2]
[350290236,1737772237496,-211.77383024,0.00010938,2]
[350290237,1737772237506,-211.77383024,0.00011283,2]
[350290238,1737772237515,-157.39796577,0.00011443,2]
[350290239,1737772237524,-800.0,0.000116,4]
[350290240,1737772237534,-211.77383024,0.00011629,2]
[350290241,1737772237544,-800.0,0.000117,4]
[350290242,1737772237554,-800.0,0.000118,4]
[350290243,1737772237563,-800.0,0.000119,4]
[350290244,1737772237573,-500.0,0.00011973,2]
[350290245,1737772237582,-211.77383024,0.00011975,2]
[350290246,1737772237592,-2176.21317937,0.0001199,2]
[350290247,1737772237601,-2176.21317937,0.0001199,2]
[350290248,1737772237611,-16582552.40215707,0.00012,2]
[350290249,1737772237620,-1642.38333866,0.00012021,2]
[350290250,1737772237630,-152.43537285,0.00012021,2]
[350290251,1737772237639,-14685.67417709,0.00012121,2]
[350290252,1737772237648,-892.83411438,0.00012221,2]
[350290253,1737772237658,-150.55560139,0.00012321,2]
[350290254,1737772237667,-211.77383024,0.00012321,2]
[350290255,1737772237676,-1000.0,0.00012521,2]
[350290256,1737772237686,-1500.0,0.00013522,2]
[350290257,1737772237695,-357.52228392,0.00013699,2]
[350290258,1737772237704,-254.99,0.000137,2]
[350290259,1737772237714,-86027.12231966,0.000148,2]
[350290260,1737772237725,-2000.0,0.0001482,2]
[350290261,1737772237737,-184196.48994949,0.000149,2]
[350290262,1737772237746,-550.0,0.00015,2]
[350290263,1737772237755,-414.08809647,0.00015,10]
[350290264,1737772237764,-3857.0,0.000151,2]
[350290265,1737772237775,-5558.0,0.000154,3]
[350290267,1737772237783,-892.83411436,0.00015447,2]
[350290269,1737772237794,-5558.0,0.000157,5]
[350290271,1737772237804,-14685.67417707,0.00016011,2]
[350290273,1737772237815,-150.55560137,0.00016111,2]
[350290275,1737772237824,-2004.46381724,0.00016356,2]
[350290277,1737772237834,-500.0,0.00016438,2]
[350290279,1737772237843,-761.15,0.00016438,2]
[350290281,1737772237852,-500.0,0.00016438,2]
[350290283,1737772237862,-861.0,0.00016438,2]
[350290285,1737772237871,-500.0,0.00016438,2]
[350290287,1737772237880,-500.0,0.00016438,2]
[350290289,1737772237890,-604.87,0.00016438,2]
[350290291,1737772237899,-603.65,0.00016438,2]
[350290293,1737772237908,-500.0,0.00016438,2]
[350290295,1737772237917,-515.15,0.00016438,2]
[350290297,1737772237927,-500.0,0.00016438,2]
[350290299,1737772237936,-500.0,0.00016438,2]
[350290301,1737772237945,-783.48,0.00016438,2]
[350290303,1737772237955,-500.0,0.00016438,2]
[350290305,1737772237964,-500.0,0.00016438,2]
[350290307,1737772237973,-544.27,0.00016438,2]
[350290309,1737772237983,-500.0,0.00016438,2]
[350290311,1737772237992,-500.0,0.00016438,2]
[350290313,1737772238001,-1254.97,0.00016438,2]
[350290315,1737772238010,-500.0,0.00016438,2]
[350290317,1737772238019,-520.6998827,0.00016438,2]
[350290319,1737772238028,-500.0,0.00016438,2]
[350290321,1737772238037,-500.0,0.00016438,2]